{"text_format":"3","workbook":"xlsx","n_sheets":3,"sheets":["Inicio","Ppto. regalos y seguimiento","Datos"],"not_rendered":{"charts":1,"defined_names":1},"read":"whole","date_system":"1900"}

{"sheet":"Inicio","index":0,"n_rows":7,"n_cols":2,"rows_kept":7}
[null,"Acerca de la plantilla"]
[null,"Use esta plantilla para registrar las compras de regalos y realizar un seguimiento de las mismas con respecto al presupuesto."]
[null,"Escriba en la tabla los nombres de familiares y amigos, los artículos de regalo, la cantidad presupuestada y gastada, y las notas, y seleccione el acontecimiento y el mes del evento."]
[null,"El gráfico de información general mensual se actualiza automáticamente."]
[null,"Nota: "]
[null,"Se facilitan instrucciones adicionales en la columna A de la hoja de cálculo PRESPUESTO PARA REGALOS Y SEGUIMIENTO. Este texto se ocultó a propósito. Para eliminar el texto, seleccione la columna A y, a continuación, ELIMINAR. Para mostrar el texto, seleccione la columna A y, a continuación, cambie el color de fuente."]
[null,"Para obtener más información sobre las tablas, presione las teclas MAYÚS y F10 dentro de una tabla, seleccione la opción TABLA y, después, TEXTO ALTERNATIVO."]

{"sheet":"Ppto. regalos y seguimiento","index":1,"n_rows":10,"n_cols":13,"rows_kept":10,"merged":[[0,1,0,4],[0,5,0,12],[1,1,1,2],[2,1,2,12]]}
["Cree un presupuesto para regalos y seguimiento personal en esta hoja de cálculo. El título de esta hoja de cálculo se encuentra en la celda de la derecha y la sugerencia, en la celda F1. En las celdas de esta columna encontrará instrucciones útiles sobre cómo usar esta hoja de cálculo.","Presupuesto para regalos y seguimiento",{"$nulls":3},"Rellene las celdas con toda la información que pueda al principio de cada nuevo año. Escriba los nombres de familiares y amigos, seleccione cuándo va a comprar el regalo, seleccione el mes del evento y escriba cuánto quiere gastar. Es posible que la misma persona aparezca varias veces dentro de la tabla en diferentes acontecimientos (cumpleaños, días festivos, fiestas de nacimiento o prenupciales, etc.)."]
["La etiqueta Información general mensual se encuentra en la celda de la derecha y la sugerencia, en la celda D2.","Información general mensual",null,"Use el gráfico para ver los próximos meses y hacer planes con antelación. Registre las compras para realizar un seguimiento de las mismas con respecto a su presupuesto."]
["El gráfico de columnas para las cantidades presupuestadas, en el que se superpone un gráfico de líneas para la cantidad gastada, se encuentra en la celda de la derecha.","El gráfico de columnas para las cantidades presupuestadas, en el que se superpone un gráfico de líneas para la cantidad gastada, se encuentra en esta celda."]
["La etiqueta Presupuesto para regalos y seguimiento se encuentra en la celda de la derecha.","Presupuesto para regalos y seguimiento"]
["Escriba los detalles en la tabla Seguimiento del presupuesto a partir de la celda de la derecha.","Quién","Acontecimiento","Mes","Cantidad\npresupuestada","Cantidad\ngastada","Regalo","Enlace al regalo","En la tienda/\nOnline","¿Comprado?","¿Envuelto?","¿Entregado?","Notas"]
[null,"Nombre 1","Cumpleaños","Junio",{"v":50,"d":"50 €"},{"v":30,"d":"30 €"},"Zapatos","Vendedor","Online","Sí","No","No","16/6, entradas para la película"]
[null,"Nombre 2","Aniversarios","Abril",{"v":20,"d":"20 €"},{"v":20,"d":"20 €"},"Un gato","Vendedor","En la tienda","No","No","No","Comentó que le gustan los perros"]
[null,"Nombre 3","Días festivos","Julio",{"v":50,"d":"50 €"},{"v":70,"d":"70 €"},"Auriculares","Vendedor","Online","No","No","No","Accesorios para la residencia"]
[null,"Nombre 4","Cumpleaños","Enero",{"v":20,"d":"20 €"},{"v":30,"d":"30 €"},"Juego","Vendedor","En la tienda","Sí","Sí","Sí"]
[null,"Nombre 5","Bodas","Junio",{"v":100,"d":"100 €"},{"v":150,"d":"150 €"},"Florero de cristal","Vendedor","En la tienda","Sí","Sí","No"]

{"sheet":"Datos","index":2,"n_rows":13,"n_cols":8,"rows_kept":13,"hidden":true}
["Acontecimientos",null,"Fecha","Fecha","Cantidad presupuestada\nCumpleaños","Cantidad presupuestada\nDías festivos","Cantidad presupuestada\nOtros","Cantidad gastada"]
["Cumpleaños",null,"Enero","En.",{"$f":"SUMIFS(BudgetTracker[Cantidad\npresupuestada],BudgetTracker[Mes],\"Enero\",BudgetTracker[Acontecimiento],\"Cumpleaños\")","v":{"v":20,"d":"20 €"}},{"$f":"SUMIFS(BudgetTracker[Cantidad\npresupuestada],BudgetTracker[Mes],\"Enero\",BudgetTracker[Acontecimiento],\"Días festivos\")","v":{"v":0,"d":"0 €"}},{"$f":"SUMIFS(BudgetTracker[Cantidad\npresupuestada],BudgetTracker[Mes],\"Enero\",BudgetTracker[Acontecimiento],\"<>Días festivos\",BudgetTracker[Acontecimiento],\"<>Cumpleaños\")","v":{"v":0,"d":"0 €"}},{"$f":"SUMIFS(BudgetTracker[Cantidad\ngastada],BudgetTracker[Mes],\"Enero\")","v":{"v":30,"d":"30 €"}}]
["Días festivos",null,"Febrero","Feb",{"$f":"SUMIFS(BudgetTracker[Cantidad\npresupuestada],BudgetTracker[Mes],\"Febrero\",BudgetTracker[Acontecimiento],\"Cumpleaños\")","v":{"v":0,"d":"0 €"}},{"$f":"SUMIFS(BudgetTracker[Cantidad\npresupuestada],BudgetTracker[Mes],\"Febrero\",BudgetTracker[Acontecimiento],\"Días festivos\")","v":{"v":0,"d":"0 €"}},{"$f":"SUMIFS(BudgetTracker[Cantidad\npresupuestada],BudgetTracker[Mes],\"Febrero\",BudgetTracker[Acontecimiento],\"<>Días festivos\",BudgetTracker[Acontecimiento],\"<>Cumpleaños\")","v":{"v":0,"d":"0 €"}},{"$f":"SUMIFS(BudgetTracker[Cantidad\ngastada],BudgetTracker[Mes],\"Febrero\")","v":{"v":0,"d":"0 €"}}]
["Aniversarios",null,"Marzo","Mar",{"$f":"SUMIFS(BudgetTracker[Cantidad\npresupuestada],BudgetTracker[Mes],\"Marzo\",BudgetTracker[Acontecimiento],\"Cumpleaños\")","v":{"v":0,"d":"0 €"}},{"$f":"SUMIFS(BudgetTracker[Cantidad\npresupuestada],BudgetTracker[Mes],\"Marzo\",BudgetTracker[Acontecimiento],\"Días festivos\")","v":{"v":0,"d":"0 €"}},{"$f":"SUMIFS(BudgetTracker[Cantidad\npresupuestada],BudgetTracker[Mes],\"Marzo\",BudgetTracker[Acontecimiento],\"<>Días festivos\",BudgetTracker[Acontecimiento],\"<>Cumpleaños\")","v":{"v":0,"d":"0 €"}},{"$f":"SUMIFS(BudgetTracker[Cantidad\ngastada],BudgetTracker[Mes],\"Marzo\")","v":{"v":0,"d":"0 €"}}]
["Bodas",null,"Abril","Abr",{"$f":"SUMIFS(BudgetTracker[Cantidad\npresupuestada],BudgetTracker[Mes],\"Abril\",BudgetTracker[Acontecimiento],\"Cumpleaños\")","v":{"v":0,"d":"0 €"}},{"$f":"SUMIFS(BudgetTracker[Cantidad\npresupuestada],BudgetTracker[Mes],\"Abril\",BudgetTracker[Acontecimiento],\"Días festivos\")","v":{"v":0,"d":"0 €"}},{"$f":"SUMIFS(BudgetTracker[Cantidad\npresupuestada],BudgetTracker[Mes],\"Abril\",BudgetTracker[Acontecimiento],\"<>Días festivos\",BudgetTracker[Acontecimiento],\"<>Cumpleaños\")","v":{"v":20,"d":"20 €"}},{"$f":"SUMIFS(BudgetTracker[Cantidad\ngastada],BudgetTracker[Mes],\"Abril\")","v":{"v":20,"d":"20 €"}}]
["Fiestas prenupciales",null,"Mayo","May",{"$f":"SUMIFS(BudgetTracker[Cantidad\npresupuestada],BudgetTracker[Mes],\"Mayo\",BudgetTracker[Acontecimiento],\"Cumpleaños\")","v":{"v":0,"d":"0 €"}},{"$f":"SUMIFS(BudgetTracker[Cantidad\npresupuestada],BudgetTracker[Mes],\"Mayo\",BudgetTracker[Acontecimiento],\"Días festivos\")","v":{"v":0,"d":"0 €"}},{"$f":"SUMIFS(BudgetTracker[Cantidad\npresupuestada],BudgetTracker[Mes],\"Mayo\",BudgetTracker[Acontecimiento],\"<>Días festivos\",BudgetTracker[Acontecimiento],\"<>Cumpleaños\")","v":{"v":0,"d":"0 €"}},{"$f":"SUMIFS(BudgetTracker[Cantidad\ngastada],BudgetTracker[Mes],\"Mayo\")","v":{"v":0,"d":"0 €"}}]
["Fiestas de nacimiento",null,"Junio","Jun",{"$f":"SUMIFS(BudgetTracker[Cantidad\npresupuestada],BudgetTracker[Mes],\"Junio\",BudgetTracker[Acontecimiento],\"Cumpleaños\")","v":{"v":50,"d":"50 €"}},{"$f":"SUMIFS(BudgetTracker[Cantidad\npresupuestada],BudgetTracker[Mes],\"Junio\",BudgetTracker[Acontecimiento],\"Días festivos\")","v":{"v":0,"d":"0 €"}},{"$f":"SUMIFS(BudgetTracker[Cantidad\npresupuestada],BudgetTracker[Mes],\"Junio\",BudgetTracker[Acontecimiento],\"<>Días festivos\",BudgetTracker[Acontecimiento],\"<>Cumpleaños\")","v":{"v":100,"d":"100 €"}},{"$f":"SUMIFS(BudgetTracker[Cantidad\ngastada],BudgetTracker[Mes],\"Junio\")","v":{"v":180,"d":"180 €"}}]
["Graduaciones",null,"Julio","Jul",{"$f":"SUMIFS(BudgetTracker[Cantidad\npresupuestada],BudgetTracker[Mes],\"Julio\",BudgetTracker[Acontecimiento],\"Cumpleaños\")","v":{"v":0,"d":"0 €"}},{"$f":"SUMIFS(BudgetTracker[Cantidad\npresupuestada],BudgetTracker[Mes],\"Julio\",BudgetTracker[Acontecimiento],\"Días festivos\")","v":{"v":50,"d":"50 €"}},{"$f":"SUMIFS(BudgetTracker[Cantidad\npresupuestada],BudgetTracker[Mes],\"Julio\",BudgetTracker[Acontecimiento],\"<>Días festivos\",BudgetTracker[Acontecimiento],\"<>Cumpleaños\")","v":{"v":0,"d":"0 €"}},{"$f":"SUMIFS(BudgetTracker[Cantidad\ngastada],BudgetTracker[Mes],\"Julio\")","v":{"v":70,"d":"70 €"}}]
["Otros",null,"Agosto","Ago",{"$f":"SUMIFS(BudgetTracker[Cantidad\npresupuestada],BudgetTracker[Mes],\"Agosto\",BudgetTracker[Acontecimiento],\"Cumpleaños\")","v":{"v":0,"d":"0 €"}},{"$f":"SUMIFS(BudgetTracker[Cantidad\npresupuestada],BudgetTracker[Mes],\"Agosto\",BudgetTracker[Acontecimiento],\"Días festivos\")","v":{"v":0,"d":"0 €"}},{"$f":"SUMIFS(BudgetTracker[Cantidad\npresupuestada],BudgetTracker[Mes],\"Agosto\",BudgetTracker[Acontecimiento],\"<>Días festivos\",BudgetTracker[Acontecimiento],\"<>Cumpleaños\")","v":{"v":0,"d":"0 €"}},{"$f":"SUMIFS(BudgetTracker[Cantidad\ngastada],BudgetTracker[Mes],\"Agosto\")","v":{"v":0,"d":"0 €"}}]
[null,null,"Septiembre","Sep",{"$f":"SUMIFS(BudgetTracker[Cantidad\npresupuestada],BudgetTracker[Mes],\"Septiembre\",BudgetTracker[Acontecimiento],\"Cumpleaños\")","v":{"v":0,"d":"0 €"}},{"$f":"SUMIFS(BudgetTracker[Cantidad\npresupuestada],BudgetTracker[Mes],\"Septiembre\",BudgetTracker[Acontecimiento],\"Días festivos\")","v":{"v":0,"d":"0 €"}},{"$f":"SUMIFS(BudgetTracker[Cantidad\npresupuestada],BudgetTracker[Mes],\"Septiembre\",BudgetTracker[Acontecimiento],\"<>Días festivos\",BudgetTracker[Acontecimiento],\"<>Cumpleaños\")","v":{"v":0,"d":"0 €"}},{"$f":"SUMIFS(BudgetTracker[Cantidad\ngastada],BudgetTracker[Mes],\"Septiembre\")","v":{"v":0,"d":"0 €"}}]
[null,null,"Octubre","Oct",{"$f":"SUMIFS(BudgetTracker[Cantidad\npresupuestada],BudgetTracker[Mes],\"Octubre\",BudgetTracker[Acontecimiento],\"Cumpleaños\")","v":{"v":0,"d":"0 €"}},{"$f":"SUMIFS(BudgetTracker[Cantidad\npresupuestada],BudgetTracker[Mes],\"Octubre\",BudgetTracker[Acontecimiento],\"Días festivos\")","v":{"v":0,"d":"0 €"}},{"$f":"SUMIFS(BudgetTracker[Cantidad\npresupuestada],BudgetTracker[Mes],\"Octubre\",BudgetTracker[Acontecimiento],\"<>Días festivos\",BudgetTracker[Acontecimiento],\"<>Cumpleaños\")","v":{"v":0,"d":"0 €"}},{"$f":"SUMIFS(BudgetTracker[Cantidad\ngastada],BudgetTracker[Mes],\"Octubre\")","v":{"v":0,"d":"0 €"}}]
[null,null,"Noviembre","Nov",{"$f":"SUMIFS(BudgetTracker[Cantidad\npresupuestada],BudgetTracker[Mes],\"Noviembre\",BudgetTracker[Acontecimiento],\"Cumpleaños\")","v":{"v":0,"d":"0 €"}},{"$f":"SUMIFS(BudgetTracker[Cantidad\npresupuestada],BudgetTracker[Mes],\"Noviembre\",BudgetTracker[Acontecimiento],\"Días festivos\")","v":{"v":0,"d":"0 €"}},{"$f":"SUMIFS(BudgetTracker[Cantidad\npresupuestada],BudgetTracker[Mes],\"Noviembre\",BudgetTracker[Acontecimiento],\"<>Días festivos\",BudgetTracker[Acontecimiento],\"<>Cumpleaños\")","v":{"v":0,"d":"0 €"}},{"$f":"SUMIFS(BudgetTracker[Cantidad\ngastada],BudgetTracker[Mes],\"Noviembre\")","v":{"v":0,"d":"0 €"}}]
[null,null,"Diciembre","Dic.",{"$f":"SUMIFS(BudgetTracker[Cantidad\npresupuestada],BudgetTracker[Mes],\"Diciembre\",BudgetTracker[Acontecimiento],\"Cumpleaños\")","v":{"v":0,"d":"0 €"}},{"$f":"SUMIFS(BudgetTracker[Cantidad\npresupuestada],BudgetTracker[Mes],\"Diciembre\",BudgetTracker[Acontecimiento],\"Días festivos\")","v":{"v":0,"d":"0 €"}},{"$f":"SUMIFS(BudgetTracker[Cantidad\npresupuestada],BudgetTracker[Mes],\"Diciembre\",BudgetTracker[Acontecimiento],\"<>Días festivos\",BudgetTracker[Acontecimiento],\"<>Cumpleaños\")","v":{"v":0,"d":"0 €"}},{"$f":"SUMIFS(BudgetTracker[Cantidad\ngastada],BudgetTracker[Mes],\"Diciembre\")","v":{"v":0,"d":"0 €"}}]